[Event "Titled Tuesday Blitz April 25 Early 2023"]
[White "Bluebaum, Matthias"]
[Black "Zhigalko, Sergei"]
[WhiteFideId "24651516"]
[BlackFideId "13502956"]
[WhiteElo "2638"]
[BlackElo "2626"]
[Result "1-0"]
[Round "08"]
[TimeControl "180+2"]
[Date "2023.04.25"]
[WhiteClock "0:00:36"]
[BlackClock "0:00:03"]

1. d4 {[%clk 0:03:00]}  Nf6 {[%clk 0:02:59]} 2. c4 {[%clk 0:03:01]}  e6 {[%clk 0:02:59]} 3. Nc3 {[%clk 0:03:02]}  Bb4 {[%clk 0:02:59]} 4. e3 {[%clk 0:03:02]}  O-O {[%clk 0:02:59]} 5. Bd2 {[%clk 0:03:03]}  d6 {[%clk 0:02:56]} 6. Bd3 {[%clk 0:03:02]}  e5 {[%clk 0:02:49]} 7. Nge2 {[%clk 0:03:03]}  Re8 {[%clk 0:02:48]} 8. O-O {[%clk 0:03:03]}  c6 {[%clk 0:02:35]} 9. a3 {[%clk 0:02:57]}  Ba5 {[%clk 0:02:35]} 10. b4 {[%clk 0:02:54]}  Bc7 {[%clk 0:02:35]} 11. Qc2 {[%clk 0:02:53]}  Nbd7 {[%clk 0:02:29]} 12. Ng3 {[%clk 0:02:37]}  Nf8 {[%clk 0:02:04]} 13. h3 {[%clk 0:02:21]}  g6 {[%clk 0:01:56]} 14. Rad1 {[%clk 0:02:15]}  exd4 {[%clk 0:01:48]} 15. exd4 {[%clk 0:02:16]}  d5 {[%clk 0:01:48]} 16. cxd5 {[%clk 0:01:58]}  cxd5 {[%clk 0:01:42]} 17. Bg5 {[%clk 0:01:55]}  Be6 {[%clk 0:01:28]} 18. Bb5 {[%clk 0:01:41]}  h6 {[%clk 0:00:57]} 19. Bxf6 {[%clk 0:01:36]}  Qxf6 {[%clk 0:00:58]} 20. Bxe8 {[%clk 0:01:36]}  Rxe8 {[%clk 0:00:57]} 21. Nxd5 {[%clk 0:01:19]}  Bxd5 {[%clk 0:00:58]} 22. Qxc7 {[%clk 0:01:20]}  Ne6 {[%clk 0:00:59]} 23. Qe5 {[%clk 0:01:15]}  Qd8 {[%clk 0:00:53]} 24. Ne4 {[%clk 0:01:15]}  Bxe4 {[%clk 0:00:47]} 25. Qxe4 {[%clk 0:01:16]}  Ng5 {[%clk 0:00:45]} 26. Qxb7 {[%clk 0:01:13]}  Qd6 {[%clk 0:00:39]} 27. Rfe1 {[%clk 0:01:11]}  Rd8 {[%clk 0:00:39]} 28. Qe7 {[%clk 0:01:06]}  Qd5 {[%clk 0:00:39]} 29. Re5 {[%clk 0:01:01]}  Qa8 {[%clk 0:00:39]} 30. d5 {[%clk 0:01:01]}  Nh7 {[%clk 0:00:19]} 31. Rd3 {[%clk 0:00:59]}  Nf8 {[%clk 0:00:18]} 32. Rde3 {[%clk 0:00:52]}  Rxd5 {[%clk 0:00:15]} 33. Rxd5 {[%clk 0:00:45]}  Qxd5 {[%clk 0:00:16]} 34. Qxa7 {[%clk 0:00:45]}  Ne6 {[%clk 0:00:09]} 35. Qb8+ {[%clk 0:00:45]}  Kh7 {[%clk 0:00:09]} 36. Qe5 {[%clk 0:00:45]}  Qd1+ {[%clk 0:00:09]} 37. Kh2 {[%clk 0:00:45]}  Qd2 {[%clk 0:00:10]} 38. Re2 {[%clk 0:00:45]}  Qd3 {[%clk 0:00:09]} 39. Qe3 {[%clk 0:00:46]}  Qd6+ {[%clk 0:00:10]} 40. Qg3 {[%clk 0:00:46]}  Qd1 {[%clk 0:00:10]} 41. Re3 {[%clk 0:00:42]}  h5 {[%clk 0:00:10]} 42. b5 {[%clk 0:00:40]}  Ng7 {[%clk 0:00:07]} 43. Rd3 {[%clk 0:00:39]}  Qa1 {[%clk 0:00:04]} 44. b6 {[%clk 0:00:36]}  Nf5 {[%clk 0:00:04]} 45. Qc7 {[%clk 0:00:36]}  Kg7 {[%clk 0:00:04]} 46. b7 {[%clk 0:00:36]}  Ne3 {[%clk 0:00:03]} 47. Rxe3 {[%clk 0:00:36]} 1-0


[Site "https://www.chess.com"]

[Event "Titled Tuesday Blitz April 25 Early 2023"]
[White "Henriquez Villagra, Cristobal"]
[Black "Martinez Alcantara, Jose Eduardo"]
[WhiteFideId "3409350"]
[BlackFideId "3805662"]
[WhiteElo "2542"]
[BlackElo "2711"]
[Result "1/2-1/2"]
[Round "08"]
[TimeControl "180+2"]
[Date "2023.04.25"]
[WhiteClock "0:00:15"]
[BlackClock "0:00:06"]

1. Nf3 {[%clk 0:03:00]}  c5 {[%clk 0:03:00]} 2. g3 {[%clk 0:03:01]}  Nc6 {[%clk 0:03:00]} 3. Bg2 {[%clk 0:03:02]}  g6 {[%clk 0:03:01]} 4. O-O {[%clk 0:03:02]}  Bg7 {[%clk 0:03:02]} 5. d3 {[%clk 0:03:02]}  d6 {[%clk 0:03:02]} 6. e4 {[%clk 0:03:00]}  Bg4 {[%clk 0:03:02]} 7. h3 {[%clk 0:03:00]}  Bxf3 {[%clk 0:03:02]} 8. Qxf3 {[%clk 0:03:00]}  Nf6 {[%clk 0:03:01]} 9. Qd1 {[%clk 0:02:59]}  O-O {[%clk 0:03:02]} 10. c3 {[%clk 0:02:59]}  Nd7 {[%clk 0:02:58]} 11. Nd2 {[%clk 0:02:59]}  b5 {[%clk 0:02:55]} 12. f4 {[%clk 0:02:41]}  Rc8 {[%clk 0:02:51]} 13. Nf3 {[%clk 0:02:37]}  b4 {[%clk 0:02:51]} 14. c4 {[%clk 0:02:29]}  Nd4 {[%clk 0:02:48]} 15. Nh2 {[%clk 0:02:17]}  e6 {[%clk 0:02:45]} 16. Kh1 {[%clk 0:02:13]}  f5 {[%clk 0:02:42]} 17. Be3 {[%clk 0:02:12]}  Kh8 {[%clk 0:02:42]} 18. Qd2 {[%clk 0:02:12]}  a5 {[%clk 0:02:42]} 19. Rae1 {[%clk 0:02:10]}  Qf6 {[%clk 0:02:34]} 20. Rf2 {[%clk 0:02:03]}  Qf7 {[%clk 0:02:20]} 21. Nf3 {[%clk 0:01:44]}  Nxf3 {[%clk 0:02:19]} 22. Bxf3 {[%clk 0:01:45]}  Nb8 {[%clk 0:02:05]} 23. exf5 {[%clk 0:01:36]}  gxf5 {[%clk 0:02:05]} 24. Rfe2 {[%clk 0:01:35]}  Nc6 {[%clk 0:02:05]} 25. Bxc6 {[%clk 0:01:06]}  Rxc6 {[%clk 0:02:06]} 26. d4 {[%clk 0:01:07]}  cxd4 {[%clk 0:01:45]} 27. Bxd4 {[%clk 0:01:08]}  e5 {[%clk 0:01:46]} 28. fxe5 {[%clk 0:01:03]}  Qxc4 {[%clk 0:01:46]} 29. Kh2 {[%clk 0:00:51]}  Qd5 {[%clk 0:01:06]} 30. b3 {[%clk 0:00:36]}  Kg8 {[%clk 0:00:54]} 31. Bb2 {[%clk 0:00:25]}  Qxd2 {[%clk 0:00:52]} 32. Rxd2 {[%clk 0:00:26]}  dxe5 {[%clk 0:00:53]} 33. Ree2 {[%clk 0:00:13]}  e4 {[%clk 0:00:51]} 34. Bxg7 {[%clk 0:00:13]}  Kxg7 {[%clk 0:00:52]} 35. Rd5 {[%clk 0:00:14]}  Kg6 {[%clk 0:00:19]} 36. Rxa5 {[%clk 0:00:14]}  h5 {[%clk 0:00:20]} 37. Kg2 {[%clk 0:00:14]}  Rc3 {[%clk 0:00:13]} 38. h4 {[%clk 0:00:14]}  Rf6 {[%clk 0:00:12]} 39. Re5 {[%clk 0:00:13]}  Rf3 {[%clk 0:00:09]} 40. Rb5 {[%clk 0:00:12]}  Rd6 {[%clk 0:00:09]} 41. Rf2 {[%clk 0:00:12]}  Rxf2+ {[%clk 0:00:05]} 42. Kxf2 {[%clk 0:00:13]}  Rd2+ {[%clk 0:00:04]} 43. Ke3 {[%clk 0:00:14]}  Rd3+ {[%clk 0:00:05]} 44. Kf2 {[%clk 0:00:14]}  Rf3+ {[%clk 0:00:02]} 45. Kg2 {[%clk 0:00:14]}  Rd3 {[%clk 0:00:03]} 46. Rxb4 {[%clk 0:00:14]}  Rd2+ {[%clk 0:00:03]} 47. Kf1 {[%clk 0:00:15]}  Rxa2 {[%clk 0:00:04]} 48. Rb6+ {[%clk 0:00:14]}  Kf7 {[%clk 0:00:04]} 49. b4 {[%clk 0:00:15]}  Rb2 {[%clk 0:00:04]} 50. b5 {[%clk 0:00:15]}  Rc2 {[%clk 0:00:05]} 51. Rb7+ {[%clk 0:00:14]}  Kf6 {[%clk 0:00:05]} 52. Rb8 {[%clk 0:00:15]}  Rb2 {[%clk 0:00:05]} 53. b6 {[%clk 0:00:15]}  Kg7 {[%clk 0:00:02]} 54. Ke1 {[%clk 0:00:15]}  Kh7 {[%clk 0:00:01]} 55. Kf1 {[%clk 0:00:16]}  Kg7 {[%clk 0:00:02]} 56. Ke1 {[%clk 0:00:16]}  Kh7 {[%clk 0:00:03]} 57. b7 {[%clk 0:00:10]}  Kg7 {[%clk 0:00:03]} 58. Kf1 {[%clk 0:00:10]}  Kh7 {[%clk 0:00:03]} 59. Rf8 {[%clk 0:00:10]}  Rxb7 {[%clk 0:00:03]} 60. Rxf5 {[%clk 0:00:11]}  Kg6 {[%clk 0:00:03]} 61. Rg5+ {[%clk 0:00:11]}  Kh6 {[%clk 0:00:03]} 62. Ke2 {[%clk 0:00:12]}  Rb3 {[%clk 0:00:03]} 63. Kf2 {[%clk 0:00:13]}  Rf3+ {[%clk 0:00:03]} 64. Kg2 {[%clk 0:00:13]}  Re3 {[%clk 0:00:04]} 65. Re5 {[%clk 0:00:13]}  Kg6 {[%clk 0:00:04]} 66. Kf2 {[%clk 0:00:13]}  Rf3+ {[%clk 0:00:04]} 67. Kg2 {[%clk 0:00:14]}  Re3 {[%clk 0:00:05]} 68. Kf2 {[%clk 0:00:15]}  Rf3+ {[%clk 0:00:05]} 69. Kg2 {[%clk 0:00:15]}  Re3 {[%clk 0:00:06]} 1/2-1/2


[Site "https://www.chess.com"]

[Event "Titled Tuesday Blitz April 25 Early 2023"]
[White "Movahed, Sina"]
[Black "Duda, Jan-Krzysztof"]
[WhiteFideId "42520835"]
[BlackFideId "1170546"]
[WhiteElo "2225"]
[BlackElo "2790"]
[Result "0-1"]
[Round "08"]
[TimeControl "180+2"]
[Date "2023.04.25"]
[WhiteClock "0:00:03"]
[BlackClock "0:00:09"]

1. e4 {[%clk 0:03:00]}  c5 {[%clk 0:02:59]} 2. Nf3 {[%clk 0:03:00]}  d6 {[%clk 0:02:59]} 3. d4 {[%clk 0:02:59]}  cxd4 {[%clk 0:03:00]} 4. Nxd4 {[%clk 0:02:58]}  Nf6 {[%clk 0:03:01]} 5. Nc3 {[%clk 0:02:55]}  a6 {[%clk 0:03:01]} 6. Bg5 {[%clk 0:02:54]}  e6 {[%clk 0:03:01]} 7. f4 {[%clk 0:02:53]}  h6 {[%clk 0:03:01]} 8. Bh4 {[%clk 0:02:53]}  Be7 {[%clk 0:03:01]} 9. Qe2 {[%clk 0:02:47]}  Nxe4 {[%clk 0:02:52]} 10. Bxe7 {[%clk 0:02:29]}  Nxc3 {[%clk 0:02:51]} 11. Qc4 {[%clk 0:02:18]}  Kxe7 {[%clk 0:02:44]} 12. Qxc3 {[%clk 0:02:19]}  Bd7 {[%clk 0:02:39]} 13. O-O-O {[%clk 0:02:17]}  Qb6 {[%clk 0:02:34]} 14. Qg3 {[%clk 0:02:13]}  Rg8 {[%clk 0:02:13]} 15. f5 {[%clk 0:02:07]}  Qc5 {[%clk 0:01:53]} 16. Qh4+ {[%clk 0:02:02]}  g5 {[%clk 0:01:45]} 17. Qxh6 {[%clk 0:01:58]}  Nc6 {[%clk 0:01:44]} 18. f6+ {[%clk 0:01:47]}  Kd8 {[%clk 0:01:36]} 19. Nxc6+ {[%clk 0:01:37]}  Bxc6 {[%clk 0:01:37]} 20. Bd3 {[%clk 0:01:17]}  Kc7 {[%clk 0:01:35]} 21. Rhe1 {[%clk 0:01:18]}  Raf8 {[%clk 0:01:26]} 22. g3 {[%clk 0:01:14]}  Rh8 {[%clk 0:01:19]} 23. Qg7 {[%clk 0:01:13]}  Kb8 {[%clk 0:01:16]} 24. h4 {[%clk 0:01:05]}  gxh4 {[%clk 0:01:08]} 25. gxh4 {[%clk 0:01:05]}  Qh5 {[%clk 0:01:06]} 26. Qg3 {[%clk 0:01:02]}  Rd8 {[%clk 0:01:05]} 27. Qg7 {[%clk 0:00:40]}  Rdg8 {[%clk 0:01:04]} 28. Be2 {[%clk 0:00:36]}  Rxg7 {[%clk 0:00:40]} 29. Bxh5 {[%clk 0:00:34]}  Rgh7 {[%clk 0:00:41]} 30. Be2 {[%clk 0:00:33]}  Rxh4 {[%clk 0:00:36]} 31. Rxd6 {[%clk 0:00:28]}  Rf4 {[%clk 0:00:36]} 32. c4 {[%clk 0:00:09]}  Kc7 {[%clk 0:00:34]} 33. Rd2 {[%clk 0:00:10]}  Rxf6 {[%clk 0:00:27]} 34. b4 {[%clk 0:00:10]}  Rh2 {[%clk 0:00:25]} 35. b5 {[%clk 0:00:07]}  axb5 {[%clk 0:00:24]} 36. cxb5 {[%clk 0:00:08]}  Bd5 {[%clk 0:00:24]} 37. a4 {[%clk 0:00:09]}  Kb6 {[%clk 0:00:24]} 38. Bd1 {[%clk 0:00:05]}  Rxd2 {[%clk 0:00:22]} 39. Kxd2 {[%clk 0:00:06]}  Rf4 {[%clk 0:00:21]} 40. Kc3 {[%clk 0:00:05]}  Rc4+ {[%clk 0:00:19]} 41. Kd3 {[%clk 0:00:05]}  Rc1 {[%clk 0:00:19]} 42. Kd2 {[%clk 0:00:05]}  Ra1 {[%clk 0:00:17]} 43. Re3 {[%clk 0:00:06]}  Kc5 {[%clk 0:00:15]} 44. Rc3+ {[%clk 0:00:04]}  Kd6 {[%clk 0:00:15]} 45. Bc2 {[%clk 0:00:03]}  f5 {[%clk 0:00:15]} 46. b6 {[%clk 0:00:02]}  f4 {[%clk 0:00:14]} 47. Rc7 {[%clk 0:00:02]}  Bc6 {[%clk 0:00:10]} 48. Rf7 {[%clk 0:00:02]}  e5 {[%clk 0:00:10]} 49. Kc3 {[%clk 0:00:02]}  Kc5 {[%clk 0:00:09]} 50. Bb3 {[%clk 0:00:01]}  Kxb6 {[%clk 0:00:08]} 51. Kb2 {[%clk 0:00:02]}  Re1 {[%clk 0:00:08]} 52. Rf5 {[%clk 0:00:03]}  Re3 {[%clk 0:00:08]} 53. Bc2 {[%clk 0:00:02]}  Ka5 {[%clk 0:00:09]} 54. Rxe5+ {[%clk 0:00:03]}  Rxe5 {[%clk 0:00:09]} 0-1


[Site "https://www.chess.com"]

[Event "Titled Tuesday Blitz April 25 Early 2023"]
[White "Lazavik, Denis"]
[Black "Salinas Herrera, Pablo"]
[WhiteFideId "13515110"]
[BlackFideId "3407128"]
[WhiteElo "2560"]
[BlackElo "2546"]
[Result "1/2-1/2"]
[Round "08"]
[TimeControl "180+2"]
[Date "2023.04.25"]
[WhiteClock "0:00:05"]
[BlackClock "0:00:05"]

1. d4 {[%clk 0:03:00]}  d5 {[%clk 0:03:00]} 2. c4 {[%clk 0:03:01]}  e6 {[%clk 0:03:00]} 3. Nf3 {[%clk 0:03:01]}  Nf6 {[%clk 0:02:58]} 4. g3 {[%clk 0:03:02]}  h6 {[%clk 0:02:59]} 5. Bg2 {[%clk 0:03:01]}  Bd6 {[%clk 0:02:59]} 6. O-O {[%clk 0:03:02]}  O-O {[%clk 0:03:00]} 7. b3 {[%clk 0:03:03]}  b6 {[%clk 0:02:59]} 8. Bb2 {[%clk 0:03:02]}  Bb7 {[%clk 0:02:59]} 9. Nc3 {[%clk 0:03:02]}  Re8 {[%clk 0:02:57]} 10. Rc1 {[%clk 0:03:02]}  Nc6 {[%clk 0:02:51]} 11. cxd5 {[%clk 0:02:25]}  exd5 {[%clk 0:02:49]} 12. Nb5 {[%clk 0:02:17]}  a6 {[%clk 0:02:50]} 13. Nxd6 {[%clk 0:02:16]}  cxd6 {[%clk 0:02:50]} 14. Ne1 {[%clk 0:02:12]}  Ne4 {[%clk 0:02:49]} 15. f3 {[%clk 0:02:11]}  Nf6 {[%clk 0:02:49]} 16. Nd3 {[%clk 0:02:09]}  Ne7 {[%clk 0:02:47]} 17. g4 {[%clk 0:02:02]}  Ng6 {[%clk 0:02:43]} 18. Qd2 {[%clk 0:02:02]}  Qe7 {[%clk 0:02:40]} 19. Rf2 {[%clk 0:01:57]}  Ne4 {[%clk 0:02:36]} 20. fxe4 {[%clk 0:01:41]}  dxe4 {[%clk 0:02:37]} 21. Qe3 {[%clk 0:00:56]}  exd3 {[%clk 0:02:35]} 22. Qxe7 {[%clk 0:00:56]}  Rxe7 {[%clk 0:02:34]} 23. Bxb7 {[%clk 0:00:57]}  Rxb7 {[%clk 0:02:28]} 24. exd3 {[%clk 0:00:58]}  Ne7 {[%clk 0:02:24]} 25. Re2 {[%clk 0:00:53]}  Nd5 {[%clk 0:02:22]} 26. Kf2 {[%clk 0:00:53]}  Rd8 {[%clk 0:01:47]} 27. Kf3 {[%clk 0:00:49]}  f6 {[%clk 0:01:31]} 28. Ba3 {[%clk 0:00:48]}  Kf7 {[%clk 0:01:29]} 29. Rc6 {[%clk 0:00:48]}  Rbd7 {[%clk 0:01:28]} 30. h4 {[%clk 0:00:47]}  a5 {[%clk 0:01:16]} 31. h5 {[%clk 0:00:46]}  b5 {[%clk 0:01:08]} 32. Ra6 {[%clk 0:00:43]}  a4 {[%clk 0:00:36]} 33. bxa4 {[%clk 0:00:40]}  bxa4 {[%clk 0:00:37]} 34. Ra5 {[%clk 0:00:36]}  Ne7 {[%clk 0:00:36]} 35. Rxa4 {[%clk 0:00:33]}  f5 {[%clk 0:00:36]} 36. Ra5 {[%clk 0:00:31]}  fxg4+ {[%clk 0:00:36]} 37. Kxg4 {[%clk 0:00:31]}  Ng8 {[%clk 0:00:37]} 38. Rf5+ {[%clk 0:00:18]}  Nf6+ {[%clk 0:00:38]} 39. Kg3 {[%clk 0:00:17]}  Ra8 {[%clk 0:00:33]} 40. Bc1 {[%clk 0:00:18]}  Ra4 {[%clk 0:00:29]} 41. Bxh6 {[%clk 0:00:15]}  Rxd4 {[%clk 0:00:24]} 42. Bg5 {[%clk 0:00:15]}  Rxd3+ {[%clk 0:00:23]} 43. Kg2 {[%clk 0:00:15]}  Rd5 {[%clk 0:00:21]} 44. Rxd5 {[%clk 0:00:12]}  Nxd5 {[%clk 0:00:22]} 45. Rd2 {[%clk 0:00:13]}  Ke6 {[%clk 0:00:22]} 46. Kf3 {[%clk 0:00:11]}  Ra7 {[%clk 0:00:20]} 47. Kg2 {[%clk 0:00:05]}  Ra4 {[%clk 0:00:20]} 48. Bd8 {[%clk 0:00:04]}  Nc3 {[%clk 0:00:15]} 49. Bc7 {[%clk 0:00:04]}  Ne4 {[%clk 0:00:14]} 50. Re2 {[%clk 0:00:04]}  d5 {[%clk 0:00:14]} 51. Bf4 {[%clk 0:00:03]}  Kf5 {[%clk 0:00:14]} 52. Bc1 {[%clk 0:00:03]}  Rc4 {[%clk 0:00:13]} 53. Bb2 {[%clk 0:00:02]}  Kg5 {[%clk 0:00:13]} 54. Bxg7 {[%clk 0:00:02]}  Kxh5 {[%clk 0:00:14]} 55. Be5 {[%clk 0:00:02]}  Kg4 {[%clk 0:00:14]} 56. Bb8 {[%clk 0:00:01]}  Ra4 {[%clk 0:00:14]} 57. Be5 {[%clk 0:00:01]}  Ng5 {[%clk 0:00:14]} 58. Bh8 {[%clk 0:00:02]}  Nf3 {[%clk 0:00:14]} 59. Kf2 {[%clk 0:00:02]}  Kf4 {[%clk 0:00:12]} 60. Bf6 {[%clk 0:00:02]}  Kg4 {[%clk 0:00:10]} 61. Kg2 {[%clk 0:00:02]}  Rc4 {[%clk 0:00:08]} 62. Bd8 {[%clk 0:00:02]}  Ra4 {[%clk 0:00:06]} 63. Kf2 {[%clk 0:00:03]}  Nd4 {[%clk 0:00:05]} 64. Rd2 {[%clk 0:00:03]}  Kf5 {[%clk 0:00:05]} 65. Bb6 {[%clk 0:00:03]}  Ke4 {[%clk 0:00:03]} 66. Kg2 {[%clk 0:00:03]}  Nf5 {[%clk 0:00:03]} 67. Re2+ {[%clk 0:00:04]}  Kd3 {[%clk 0:00:04]} 68. Re5 {[%clk 0:00:04]}  Nh4+ {[%clk 0:00:03]} 69. Kh3 {[%clk 0:00:04]}  Nf3 {[%clk 0:00:03]} 70. Rxd5+ {[%clk 0:00:05]}  Ke4 {[%clk 0:00:03]} 71. Rd8 {[%clk 0:00:05]}  Rxa2 {[%clk 0:00:04]} 72. Kg3 {[%clk 0:00:06]}  Ne5 {[%clk 0:00:04]} 73. Re8 {[%clk 0:00:06]}  Ra3+ {[%clk 0:00:03]} 74. Kh4 {[%clk 0:00:06]}  Kf5 {[%clk 0:00:03]} 75. Rf8+ {[%clk 0:00:07]}  Ke6 {[%clk 0:00:03]} 76. Rf1 {[%clk 0:00:06]}  Ra4+ {[%clk 0:00:03]} 77. Kg3 {[%clk 0:00:06]}  Rg4+ {[%clk 0:00:02]} 78. Kh3 {[%clk 0:00:07]}  Re4 {[%clk 0:00:03]} 79. Bc7 {[%clk 0:00:07]}  Ng6 {[%clk 0:00:03]} 80. Bg3 {[%clk 0:00:07]}  Re3 {[%clk 0:00:03]} 81. Kg4 {[%clk 0:00:08]}  Ne5+ {[%clk 0:00:03]} 82. Kh4 {[%clk 0:00:07]}  Re4+ {[%clk 0:00:04]} 83. Kh5 {[%clk 0:00:07]}  Re3 {[%clk 0:00:04]} 84. Bf4 {[%clk 0:00:07]}  Re4 {[%clk 0:00:04]} 85. Kg5 {[%clk 0:00:08]}  Nd3 {[%clk 0:00:04]} 86. Bg3 {[%clk 0:00:08]}  Re2 {[%clk 0:00:05]} 87. Rf6+ {[%clk 0:00:07]}  Kd5 {[%clk 0:00:04]} 88. Rd6+ {[%clk 0:00:08]}  Ke4 {[%clk 0:00:04]} 89. Kg4 {[%clk 0:00:08]}  Ne5+ {[%clk 0:00:04]} 90. Kh3 {[%clk 0:00:07]}  Nc4 {[%clk 0:00:04]} 91. Re6+ {[%clk 0:00:07]}  Kd3 {[%clk 0:00:04]} 92. Rxe2 {[%clk 0:00:05]}  Kxe2 {[%clk 0:00:05]} 1/2-1/2


[Site "https://www.chess.com"]

[Event "Titled Tuesday Blitz April 25 Early 2023"]
[White "Svane, Frederik"]
[Black "djokovic74"]
[WhiteFideId "12923044"]
[WhiteElo "2502"]
[BlackElo "2630"]
[Result "1-0"]
[Round "08"]
[TimeControl "180+2"]
[Date "2023.04.25"]
[WhiteClock "0:00:26"]
[BlackClock "0:00:01"]

1. e4 {[%clk 0:02:57]}  e6 {[%clk 0:03:00]} 2. d4 {[%clk 0:02:57]}  d5 {[%clk 0:03:00]} 3. Nd2 {[%clk 0:02:57]}  c5 {[%clk 0:02:59]} 4. Ngf3 {[%clk 0:02:57]}  cxd4 {[%clk 0:02:59]} 5. Nxd4 {[%clk 0:02:58]}  Nc6 {[%clk 0:02:59]} 6. Bb5 {[%clk 0:02:57]}  Bd7 {[%clk 0:02:59]} 7. Nxc6 {[%clk 0:02:57]}  bxc6 {[%clk 0:02:59]} 8. Bd3 {[%clk 0:02:58]}  Bd6 {[%clk 0:02:59]} 9. O-O {[%clk 0:02:57]}  Ne7 {[%clk 0:03:00]} 10. b3 {[%clk 0:02:40]}  O-O {[%clk 0:02:57]} 11. Bb2 {[%clk 0:02:40]}  a5 {[%clk 0:02:53]} 12. Qh5 {[%clk 0:02:35]}  Ng6 {[%clk 0:02:51]} 13. e5 {[%clk 0:02:32]}  Bc7 {[%clk 0:02:51]} 14. Nf3 {[%clk 0:02:31]}  h6 {[%clk 0:02:18]} 15. Bxg6 {[%clk 0:02:21]}  fxg6 {[%clk 0:02:18]} 16. Qxg6 {[%clk 0:02:22]}  Qe7 {[%clk 0:02:11]} 17. a4 {[%clk 0:02:07]}  c5 {[%clk 0:02:09]} 18. Rfe1 {[%clk 0:02:03]}  Rf5 {[%clk 0:01:45]} 19. Ba3 {[%clk 0:02:00]}  Raf8 {[%clk 0:01:37]} 20. c4 {[%clk 0:01:39]}  Rxf3 {[%clk 0:01:00]} 21. gxf3 {[%clk 0:01:39]}  d4 {[%clk 0:00:58]} 22. Rad1 {[%clk 0:01:19]}  Rf5 {[%clk 0:00:55]} 23. f4 {[%clk 0:01:07]}  Rxf4 {[%clk 0:00:44]} 24. Qg3 {[%clk 0:01:03]}  g5 {[%clk 0:00:32]} 25. Bc1 {[%clk 0:00:59]}  Rf5 {[%clk 0:00:24]} 26. f4 {[%clk 0:00:57]}  Qg7 {[%clk 0:00:22]} 27. Rf1 {[%clk 0:00:35]}  g4 {[%clk 0:00:17]} 28. Kf2 {[%clk 0:00:32]}  Bc6 {[%clk 0:00:16]} 29. Ke1 {[%clk 0:00:31]}  Rh5 {[%clk 0:00:13]} 30. Rg1 {[%clk 0:00:29]}  Bf3 {[%clk 0:00:12]} 31. Rd3 {[%clk 0:00:29]}  Be4 {[%clk 0:00:10]} 32. Qxg4 {[%clk 0:00:27]}  Qxg4 {[%clk 0:00:07]} 33. Rxg4+ {[%clk 0:00:27]}  Kf8 {[%clk 0:00:02]} 34. Rdg3 {[%clk 0:00:28]}  Bh7 {[%clk 0:00:01]} 35. Rg7 {[%clk 0:00:26]} 1-0


[Site "https://www.chess.com"]

[Event "Titled Tuesday Blitz April 25 Early 2023"]
[White "Steinberg, Nitzan"]
[Black "Bilych, Olexiy"]
[WhiteFideId "2801795"]
[BlackFideId "14156504"]
[WhiteElo "2486"]
[BlackElo "2320"]
[Result "1-0"]
[Round "08"]
[TimeControl "180+2"]
[Date "2023.04.25"]
[WhiteClock "0:02:03"]
[BlackClock "0:00:12"]

1. Nf3 {[%clk 0:03:00]}  d5 {[%clk 0:02:51]} 2. g3 {[%clk 0:03:01]}  Nf6 {[%clk 0:02:52]} 3. Bg2 {[%clk 0:03:02]}  Bf5 {[%clk 0:02:52]} 4. O-O {[%clk 0:03:03]}  e6 {[%clk 0:02:53]} 5. d3 {[%clk 0:03:03]}  h6 {[%clk 0:02:53]} 6. Nbd2 {[%clk 0:03:03]}  Bh7 {[%clk 0:02:54]} 7. Qe1 {[%clk 0:03:03]}  Be7 {[%clk 0:02:54]} 8. e4 {[%clk 0:03:04]}  O-O {[%clk 0:02:54]} 9. Qe2 {[%clk 0:03:04]}  c5 {[%clk 0:02:55]} 10. Re1 {[%clk 0:03:02]}  Nc6 {[%clk 0:02:55]} 11. e5 {[%clk 0:02:57]}  Nd7 {[%clk 0:02:55]} 12. Nf1 {[%clk 0:02:58]}  b5 {[%clk 0:02:51]} 13. h4 {[%clk 0:02:58]}  a5 {[%clk 0:02:48]} 14. N1h2 {[%clk 0:02:58]}  Re8 {[%clk 0:02:45]} 15. Ng4 {[%clk 0:02:58]}  Bf8 {[%clk 0:02:45]} 16. Bf4 {[%clk 0:02:54]}  Nd4 {[%clk 0:02:28]} 17. Nxd4 {[%clk 0:02:54]}  cxd4 {[%clk 0:02:29]} 18. Nh2 {[%clk 0:02:49]}  Rc8 {[%clk 0:02:27]} 19. Nf3 {[%clk 0:02:46]}  Qb6 {[%clk 0:02:23]} 20. h5 {[%clk 0:02:45]}  Rc6 {[%clk 0:02:19]} 21. g4 {[%clk 0:02:37]}  Rec8 {[%clk 0:02:20]} 22. Rac1 {[%clk 0:02:36]}  Nc5 {[%clk 0:01:57]} 23. g5 {[%clk 0:02:31]}  Na4 {[%clk 0:00:22]} 24. gxh6 {[%clk 0:02:22]}  gxh6 {[%clk 0:00:23]} 25. Qd2 {[%clk 0:02:23]}  Qd8 {[%clk 0:00:20]} 26. Bxh6 {[%clk 0:02:23]}  Nxb2 {[%clk 0:00:20]} 27. Nxd4 {[%clk 0:02:17]}  Rc3 {[%clk 0:00:17]} 28. Bg5 {[%clk 0:02:06]}  Qb6 {[%clk 0:00:15]} 29. Bf6 {[%clk 0:02:02]}  Qxd4 {[%clk 0:00:11]} 30. Qg5+ {[%clk 0:02:03]}  Bg6 {[%clk 0:00:11]} 31. hxg6 {[%clk 0:02:04]}  Rxc2 {[%clk 0:00:12]} 32. gxf7+ {[%clk 0:02:03]}  Kxf7 {[%clk 0:00:12]} 33. Qh5+ {[%clk 0:02:03]} 1-0


[Site "https://www.chess.com"]